Cogmind - Beta 13 @@@ ROGUE MODE // 2024.04.27 @ 20:48:50 Player: RD-BNK(r) Result: Destroyed by D-53 Grenadier with Mini Grenade Launcher Performance ------------- Evolutions (0) 0 Regions Visited (2) 400 Robots Destroyed (23) 115 Value Destroyed (506) 506 Prototype IDs (0) 0 Alien Tech Used (0) 0 Bonus (0) 0 TOTAL SCORE: 1021 Bonus ------- None Cogmind --------- Core Integrity 0/250 Matter 271/300 Energy 125/125 System Corruption 2% Temperature Warm (199) Movement Treading (240) Ox1 Location -10/Mines Parts ------- > --- POWER (1) -------- Light Ion Engine > --- PROPULSION (2) --- Light Treads Light Treads > --- UTILITY (2) ------ High-capacity Storage Unit Seismic Detector (fused) > --- WEAPON (2) ------- Light Assault Rifle > --- INVENTORY (20) --- Light Ion Engine Light Ion Engine Light Treads Light Treads Wheel Compact Wheel Improved Heat Sink Medium Storage Unit Weight Redist. System Structural Scanner Assault Rifle Light Assault Rifle Light Assault Rifle Datajack Peak State ------------ > --- POWER ------------ Ion Engine > --- PROPULSION ------- Light Treads Light Treads > --- UTILITY ---------- High-capacity Storage Unit Structural Scanner > --- WEAPON ----------- Assault Rifle Light Assault Rifle > --- INVENTORY -------- Light Ion Engine Light Ion Engine Light Treads Wheel Compact Wheel Medium Storage Unit Seismic Detector Light Assault Rifle Datajack Mining Laser [Rating: 8] Favorites ----------- Power Ion Engine Engine Ion Engine Propulsion Light Treads Treads Light Treads Leg Aluminum Leg Utility High-capacity Storage Unit Device Structural Scanner Storage High-capacity Storage Unit Protection Backup Plating I Weapon Assault Rifle Ballistic Gun Assault Rifle Special Weapon Mining Laser Build | -11 -10 -10 ------- Run | Yrd Mat Min Slots Evolved . | . . . Power . | . . . Propulsion . | . . . Utility . | . . . Weapon . | . . . Parts Attached 20 | 3 10 7 Power 4 | . 3 1 Engine 4 | . 3 1 Core . | . . . Reactor . | . . . Propulsion 4 | 2 . 2 Treads 4 | 2 . 2 Leg . | . . . Wheel . | . . . Hover . | . . . Flight . | . . . Utility 4 | 1 2 1 Device 3 | 1 1 1 Storage 1 | . 1 . Processor . | . . . Hackware . | . . . Protection . | . . . Artifact . | . . . Weapon 8 | . 5 3 Energy Gun . | . . . Energy Cannon . | . . . Ballistic Gun 6 | . 4 2 Ballistic Cannon . | . . . Launcher . | . . . Special Weapon 2 | . 1 1 Impact Weapon . | . . . Slashing Weapon . | . . . Piercing Weapon . | . . . Special Melee Weapon . | . . . Unidentified Prototypes . | . . . Parts Lost 7 | . 4 3 Power 1 | . 1 . Propulsion 1 | . . 1 Utility 1 | . 1 . Weapon 4 | . 2 2 Highest Loss Streak 3 | . 3 1 To Critical Strikes . | . . . Average Slot Usage (%) 99 | . 98 99 Engine 13 | . 13 14 Treads 28 | . 28 28 Device 10 | . 9 14 Storage 14 | . 14 14 Protection 3 | . 3 . Ballistic Gun 27 | . 27 23 Naked Turns . | . . . Heaviest Build 50 | 15 50 47 Greatest Support 40 | 40 40 40 Greatest Overweight (x) 1 | . 1 1 Average Overweight (x) . | . . 1 Largest Inventory Capacity 20 | 8 20 20 Average Capacity 19 | 8 19 20 Most Carried 15 | 7 13 15 Average Carried 10 | 6 9 13 Final Capacity 20 | 8 20 20 Final Carried 14 | 5 12 14 Class Distribution -------------------- 100% | Mutant Dominant Class ---------------- Mutant | -10/Materials Mutant | -10/Mines Resources | -11 -10 -10 ----------- Run | Yrd Mat Min Matter Collected 735 | 220 399 116 Remotely . | . . . Salvage Created 687 | 57 562 68 Parts 52 | 10 33 9 Haulers Intercepted 2 | . 2 . Recyclers Shooed . | . . . Parts Field Recycled . | . . . Retrieved Matter . | . . . Parts Self-Destructed . | . . . Prevented . | . . . Kills | -11 -10 -10 ------- Run | Yrd Mat Min Combat Hostiles Destroyed 12 | . 9 3 Guns 12 | . 9 3 Classes Destroyed 8 | 1 7 . Worker 1 | . 1 . Builder 1 | . 1 . Tunneler 3 | 3 . . Hauler 2 | . 2 . Recycler 1 | . 1 . Watcher 3 | . 3 . Swarmer 4 | . 2 2 Grunt 8 | . 7 1 Best Kill Streak 5 | 2 5 2 Combat Bots Only 4 | . 4 2 Max Kills in Single Turn 3 | 1 3 1 Gunslinging . | . . . Exploded . | . . . Melee . | . . . Uniques/NPCs Destroyed . | . . . Combat | -11 -10 -10 -------- Run | Yrd Mat Min Hostile Shots Fired 99 | . 65 34 Missed 23 | . 16 7 Damage Taken 1390 | . 590 800 Core 257 | . 120 137 Absorbed by Shields . | . . . Core Remaining (%) 100 | 100 . . Volleys Fired 86 | 4 63 19 Largest 2 | 2 2 2 Hottest 100 | 40 100 100 Shots Fired 166 | 8 123 35 Gun 159 | 8 120 31 Cannon . | . . . Launcher . | . . . Special 7 | . 3 4 Kinetic 159 | 8 120 31 Thermal 7 | . 3 4 Explosive . | . . . Electromagnetic . | . . . Robot Hit Streak 13 | 4 13 5 Robot Miss Streak 3 | 2 3 3 Penetration Max . | . . . Secondary Targets 3 | . 2 1 Max Gunslinging Chain 1 | . 1 1 Shots Hit Robots 99 | 4 79 16 Core Hits 38 | 3 29 6 Critical Kills . | . . . Critical Parts Destroyed . | . . . Critical Strikes . | . . . Melee Attacks . | . . . Impact . | . . . Slashing . | . . . Piercing . | . . . Sneak Attacks . | . . . Combat Hostiles . | . . . Follow-up Attacks . | . . . Damage Inflicted 1441 | 49 1222 170 Guns 1100 | 49 881 170 Cannons . | . . . Explosions 336 | . 336 . Melee . | . . . Ramming 5 | . 5 . Kinetic 1100 | 49 881 170 Thermal 167 | . 167 . Explosive 169 | . 169 . Electromagnetic . | . . . Impact . | . . . Slashing . | . . . Piercing . | . . . Highest Corruption 2 | . 1 2 Average Corruption 1 | . 1 1 Corruption Purged . | . . . Corruption Blocked . | . . . Effects 20 | . 13 7 Message Errors 3 | . 1 2 Matter Fused 4 | . 2 2 Heat Flow Errors 5 | . 4 1 Energy Discharges 3 | . 3 . Parts Rejected 1 | . 1 . Parts Fused 1 | . . 1 Data Loss (minor) 1 | . 1 . Data Loss (major) 1 | . 1 . Misfires 1 | . . 1 Overload Shots . | . . . Overflow Damage 101 | . 101 . Projectiles . | . . . Explosions 101 | . 101 . Melee . | . . . Knockbacks . | . . . Impact . | . . . Kinetic . | . . . Secondary . | . . . Self-Inflicted Damage . | . . . Shots . | . . . Rammed 1 | . 1 . Targets Rammed 1 | . 1 . Kicked . | . . . Crushed . | . . . Highest Temperature 237 | . 196 237 Average Temperature 34 | . 31 45 Received Heat Transfer 387 | . 288 99 Siege Activations . | . . . Robots Corrupted . | . . . Combat Hostiles . | . . . Parts Fried . | . . . Impact Corruptions . | . . . Robots Melted . | . . . Combat Hostiles . | . . . Parts Melted . | . . . Heat Transferred 100 | . 100 . Parts Sabotaged . | . . . Parts Stolen . | . . . Parts Stripped . | . . . Power Chain Reactions . | . . . Alert | -11 -10 -10 ------- Run | Yrd Mat Min Peak Influence 200 | 15 200 96 Initial 19 | . 9 19 Average 52 | 4 49 82 Maximum Alert Level 1 | . 1 . Low Security (%) 93 | 100 91 100 Level 1 6 | . 8 . Level 2 . | . . . Level 3 . | . . . Level 4 . | . . . Level 5 . | . . . High Security . | . . . Max Security . | . . . Squads Dispatched 1 | . 1 . Investigation . | . . . Extermination . | . . . Reinforcement 1 | . 1 . Assault . | . . . Garrison . | . . . Intercept . | . . . Searches Triggered . | . . . Construction Impeded . | . . . Haulers Reinforced . | . . . Active Scanning Responses . | . . . Cargo Convoy Interrupts . | . . . Stealth | -11 -10 -10 --------- Run | Yrd Mat Min Distress Signals . | . . . Communications Jammed . | . . . Distress Signals . | . . . Times Spotted 31 | . 24 7 Peak Tracking Total 8 | . 8 3 Tactical Retreats 2 | . 1 1 Traps | -11 -10 -10 ------- Run | Yrd Mat Min Traps Triggered 2 | . 2 . Indirectly . | . . . Trap Hack Attempts . | . . . Triggered . | . . . Disarmed . | . . . Reprogrammed . | . . . Reused . | . . . Traps Extracted . | . . . Installed . | . . . Triggered . | . . . Machines | -11 -10 -10 ---------- Run | Yrd Mat Min Machines Disabled 7 | . 7 . Max in Single Turn 6 | . 6 . Machines Repaired . | . . . Machines Dismantled . | . . . Machines Sabotaged . | . . . Overloaded Fab Kills . | . . . Hacking | -11 -10 -10 --------- Run | Yrd Mat Min Machines Accessed 9 | . 9 . Terminals 6 | . 6 . Fabricators . | . . . Repair Stations 1 | . 1 . Recycling Units 2 | . 2 . Scanalyzers . | . . . Garrison Access . | . . . Total Hacks 17 | . 17 . Successful 10 | . 10 . Failed 7 | . 7 . Catastrophic 3 | . 3 . Database Lockouts . | . . . Manual 15 | . 15 . Terminals 9 | . 9 . Fabricators . | . . . Repair Stations 2 | . 2 . Recycling Units 6 | . 6 . Scanalyzers . | . . . Garrison Access . | . . . Terminal Hacks 1 | . 1 . Terminal Index 1 | . 1 . Fabricator Hacks . | . . . Repair Station Hacks 1 | . 1 . Refit 1 | . 1 . Recycling Unit Hacks . | . . . Scanalyzer . | . . . Garrison Access Hacks . | . . . Unauthorized Hacks 8 | . 8 . Terminals 4 | . 4 . Assimilate 2 | . 2 . Operators 2 | . 2 . Fabricators . | . . . Repair Stations 1 | . 1 . Mechanics 1 | . 1 . Recycling Units 3 | . 3 . Reject 1 | . 1 . Recyclers 1 | . 1 . Mask 1 | . 1 . Scanalyzers . | . . . Garrison Access . | . . . Data Cores Recovered . | . . . Used . | . . . Hacking Detections 6 | . 6 . Full Trace Events . | . . . Feedback Events . | . . . Feedback Blocked . | . . . Robot Schematics Acquired . | . . . Robots Built . | . . . Authchips . | . . . Time . | . . . Total Robot Build Rating . | . . . Part Schematics Acquired . | . . . Parts Built . | . . . Authchips . | . . . Time . | . . . Total Part Build Rating . | . . . Parts Repaired . | . . . Time . | . . . Parts Recycled . | . . . Recycled Matter . | . . . Retrieved Matter . | . . . Retrieved Components . | . . . Parts Scanalyzed . | . . . Part Schematics Acquired . | . . . Parts Damaged . | . . . Bothacking | -11 -10 -10 ------------ Run | Yrd Mat Min Used RIF Installer . | . . . Robots Hacked . | . . . Non-combat . | . . . Combat . | . . . Robot Hacks Applied . | . . . Relay Couplers Released . | . . . Fabnet Peak Effective % . | . . . Robots Rewired . | . . . Allies Hacked . | . . . Hacks Repelled . | . . . Allies | -11 -10 -10 -------- Run | Yrd Mat Min Total Allies 1 | . 1 . Largest Group 1 | . 1 1 Highest-Rated Group 10 | . 10 9 Highest-Rated Ally 10 | . 10 9 Total Orders 2 | . . 2 STAY 1 | . . 1 FOLLOW 1 | . . 1 Ally Attacks . | . . . Total Damage . | . . . Kills . | . . . Allies Corrupted . | . . . Allies Melted . | . . . Intel | -11 -10 -10 ------- Run | Yrd Mat Min Robot Analysis Total . | . . . Derelict Logs Recovered . | . . . Drone Launches . | . . . Drone Recoveries . | . . . Exploration | -11 -10 -10 ------------- Run | Yrd Mat Min Turns Passed 2926 | 69 2497 360 Spaces Moved 866 | 29 745 92 Core . | . . . Treads 866 | 29 745 92 Legs . | . . . Wheels . | . . . Hover . | . . . Flight . | . . . Fastest Speed 160 | 160 160 240 Average Speed 236 | 160 239 240 Slowest Speed 240 | 160 240 240 Overloaded Moves . | . . . Propulsion Burnouts . | . . . Robots Hopped . | . . . Cave-ins Triggered 1 | . . 1 Exploration Rate (%) 40 | 3 99 19 Regions Visited 2 Branch Regions 1 Pre-discovered Areas . | . . . Known Exits Taken . | . . . Unknown Exits Taken 2 | 1 1 . Scrap Searched . | . . . Spaces Dug 7 | . 3 4 Terrain Destroyed 56 | . 52 4 Melee . | . . . Projectile 7 | . 3 4 AOE 49 | . 49 . Terrain Rammed . | . . . Walls Destroyed . | . . . Machines Disabled . | . . . Actions | -11 -10 -10 --------- Run | Yrd Mat Min Total 1568 | 44 1333 191 Wait 577 | 5 503 69 Move 864 | 28 744 92 Hop . | . . . Pick Up 16 | 2 10 4 Fast Attach 4 | . 4 . Attach 6 | 1 3 2 Detach . | . . . Swap 10 | 2 3 5 Drop 4 | 2 2 . Fire 86 | 4 63 19 Melee . | . . . Ram . | . . . Kick . | . . . Crush 1 | . 1 . Escape Stasis . | . . . Rewire . | . . . Trap . | . . . Miscellaneous . | . . . Route ------- -11/Scrapyard -10/Materials (discovered 5 exits: [*Mat x3] / [*Min] / [*Sub]) -10/Mines (discovered 1 exit: [*Mat]) History --------- Turn | Location | Event 4 | -11/Scrapyard | Discovered new exit (range 3) 70 | -11/Scrapyard | Entered Materials 313 | -10/Materials | Build established: Mutant 432 | -10/Materials | Lost 3 parts (1u2w) 613 | -10/Materials | Discovered new exit (range 16) 757 | -10/Materials | Discovered new exit (range 15) 1446 | -10/Materials | Discovered new exit (range 16) 1814 | -10/Materials | Discovered new exit (range 12) 2391 | -10/Materials | Discovered new exit (range 5) 2567 | -10/Materials | Entered Mines 2567 | -10/Mines | Accompanied by 1 ally 2574 | -10/Mines | Core integrity fell below 50% 2654 | -10/Mines | Assembled infested the area 2659 | -10/Mines | Assisted by a Guerilla fighting off Assembled 2782 | -10/Mines | Crushed by falling debris 2782 | -10/Mines | Core integrity fell below 20% 2859 | -10/Mines | Discovered new exit (range 7) 2927 | -10/Mines | Destroyed by D-53 Grenadier with Mini Grenade Launcher Last Messages --------------- 02782_ Crushed by falling debris. 02782_ Mining Laser destroyed. 02782_ System corrupted by crushing effect (+1). 02790_ Acquired 11 matter. 02800_ T,H/MH1L&CRS4ZSP64HQCX>&MO, 02817_ Acquired Imp. Heat Sink. 02825_ R-06 Scavenger collects Aluminum Leg. 02855_ System corrupted: Matter fused (-10). 02859_ EXIT=FOUND 02876_ Acquired 29 matter. 02886_ Acquired 4 matter. 02888_ Acquired 5 matter. 02890_ UJG KII&XTFPW9CZ&LUB 02927_ Lgt. Assault Rifle destroyed. Map ----- +----------------------------------------------------+ | | | | | | | | | | | | | | | | | | | | | | | | | | | | | | | ???????????????????????????????????????????????? | | ???????????????????????????????????????????????# | | ??????????????????????######??????????????????## | | ?????????????????????## ##????????????????### | | ?????????????????????# < #???????????????#### | | ???????????????????#?# #??????????????#### | | ???????????????????# # ####???????????### | | ???????????????????# ## #???####????## | | ???????????##$###### # ##### #??## ##???## | | ??????????# # ## #??# ##??### | | ????????????? """ @ #?# #### #??### | | ????????????? """ #?# ###### | | ????????????? """ ### ### ##### | | ??????????# #?# #### [ | | ??????????# # #?# #?##### ### # | | ??????????##### #?# ##?# #???#### ##### | | ??????????????#??# ### #????########### | | ?????????????????### #??????????????? | | ???????????????????# #####??????????????? | | ???????????????????## d #??????????????????? | | ????????????????????## #?????????????????? | | ???????????????????? d #?????????????????? | | ??????????????????? u ## #?????????????????? | | ?????????????????? u%###?##?????????????????? | | ?????????????????## ##??????????????????????? | | ??????????????????## #???????????????????????? | | ???????????????????## ????????????????????????? | | ????????????????????# ????????????????????????? | | ????????????????????# ????????????????????????? | | ????????????????????# ????????????????????????? | | ????????????????????# ????????????????????????? | | ????????????????????# ????????????????????????? | | ????????????????????# ?????????????????????????? | | ????????????????????# ?????????????????????????? | | ????????????????????? ?????????????????????????? | +----------------------------------------------------+ Best States ------------- Heat Dissipation 25 Energy Generation 10 Energy Capacity 250 Matter Stores 300 Matter Capacity 300 Sight Range 16 Terrain Scan Density 10 Armor Coverage 80 Evasion (%) 40 Recoil Reduction 2 Item Schematics ----------------- None Robot Schematics ------------------ None Fabricated ------------ Nothing Alien Tech Used ----------------- None Achievements -------------- None Challenges ------------ None Game ------ Seed ImprovedInertialSword Manual? 0 Play Time 00:16:34 Cumulative 90.9 hours Start 2024.04.27 @ 20:31:30 End 2024.04.27 @ 20:48:50 Sessions 1 Manual Loads 0 Difficulty Rogue Special Mode None Game No. 104 Rogue 104 Adventurer 0 Explorer 0 Win Type - Total 2 Types 2/0/0/0/0/0/0/0/0 Lore% 41 Gallery% 44 Achievement% 40 Wizard Run 0 Options --------- Layout 0 ASCII 0 Keyboard 0 Movement Mouse Keybinds 0 Fullscreen 2 Font 18/X11Bold Map View 76x50 Zoom Use 0% Tactical HUD 1 Map Filters NONE Filters NONE Steam 1 RUN: 88f80e8c-1f08-4990-8f22-21e19bf6461f